[Event "Titled Tuesday Blitz February 21 Late 2023"]
[White "KhalilMousavi98"]
[Black "Horvath, Dominik"]
[BlackFideId "1642561"]
[WhiteElo "2871"]
[BlackElo "2523"]
[Result "1-0"]
[Round "06"]
[TimeControl "180+2"]
[Date "2023.02.21"]
[WhiteClock "0:00:49"]
[BlackClock "0:01:02"]

1. e4 {[%clk 0:03:00]}  e5 {[%clk 0:02:57]} 2. Nf3 {[%clk 0:03:00]}  Nc6 {[%clk 0:02:58]} 3. Bb5 {[%clk 0:03:00]}  a6 {[%clk 0:02:56]} 4. Ba4 {[%clk 0:03:00]}  Nf6 {[%clk 0:02:57]} 5. Nc3 {[%clk 0:03:01]}  b5 {[%clk 0:02:54]} 6. Bb3 {[%clk 0:03:00]}  Bc5 {[%clk 0:02:55]} 7. d3 {[%clk 0:02:58]}  h6 {[%clk 0:02:55]} 8. a3 {[%clk 0:02:53]}  d6 {[%clk 0:02:55]} 9. Nd5 {[%clk 0:02:50]}  Rb8 {[%clk 0:02:50]} 10. c3 {[%clk 0:02:40]}  O-O {[%clk 0:02:45]} 11. O-O {[%clk 0:02:13]}  Ba7 {[%clk 0:02:41]} 12. a4 {[%clk 0:02:09]}  b4 {[%clk 0:02:36]} 13. Be3 {[%clk 0:02:01]}  Bxe3 {[%clk 0:02:28]} 14. fxe3 {[%clk 0:02:02]}  Nxd5 {[%clk 0:02:26]} 15. Bxd5 {[%clk 0:02:03]}  Ne7 {[%clk 0:02:26]} 16. Bc4 {[%clk 0:02:03]}  a5 {[%clk 0:02:22]} 17. Nd2 {[%clk 0:01:47]}  Ng6 {[%clk 0:02:17]} 18. Qh5 {[%clk 0:01:35]}  Qg5 {[%clk 0:02:06]} 19. Qxg5 {[%clk 0:01:34]}  hxg5 {[%clk 0:02:07]} 20. Nf3 {[%clk 0:01:35]}  g4 {[%clk 0:02:06]} 21. Ng5 {[%clk 0:01:35]}  Nh8 {[%clk 0:02:06]} 22. Nxf7 {[%clk 0:01:30]}  Nxf7 {[%clk 0:02:03]} 23. Rxf7 {[%clk 0:01:29]}  Rxf7 {[%clk 0:01:58]} 24. Rf1 {[%clk 0:01:29]}  bxc3 {[%clk 0:01:56]} 25. bxc3 {[%clk 0:01:29]}  Kh7 {[%clk 0:01:35]} 26. Rxf7 {[%clk 0:01:28]}  Rb7 {[%clk 0:01:12]} 27. Kf2 {[%clk 0:01:10]}  Kg6 {[%clk 0:01:11]} 28. Kg3 {[%clk 0:01:03]}  c5 {[%clk 0:00:58]} 29. Rxb7 {[%clk 0:00:59]}  Bxb7 {[%clk 0:00:59]} 30. Kxg4 {[%clk 0:00:59]}  Bc6 {[%clk 0:01:00]} 31. Bb5 {[%clk 0:00:50]}  Bxb5 {[%clk 0:01:00]} 32. axb5 {[%clk 0:00:50]}  a4 {[%clk 0:01:01]} 33. b6 {[%clk 0:00:51]}  a3 {[%clk 0:01:01]} 34. b7 {[%clk 0:00:51]}  a2 {[%clk 0:01:02]} 35. b8=Q {[%clk 0:00:52]}  a1=Q {[%clk 0:01:03]} 36. Qxd6+ {[%clk 0:00:51]}  Kh7 {[%clk 0:01:04]} 37. Qxe5 {[%clk 0:00:48]}  Qd1+ {[%clk 0:01:03]} 38. Kh3 {[%clk 0:00:49]}  Qxd3 {[%clk 0:01:02]} 39. Qh5+ {[%clk 0:00:48]}  Kg8 {[%clk 0:01:02]} 40. Qd5+ {[%clk 0:00:49]} 1-0


[Site "https://www.chess.com"]

[Event "Titled Tuesday Blitz February 21 Late 2023"]
[White "Livaic, Leon"]
[Black "Rorrer, Grayson"]
[WhiteFideId "14531534"]
[BlackFideId "30944996"]
[WhiteElo "2579"]
[BlackElo "2263"]
[Result "1-0"]
[Round "06"]
[TimeControl "180+2"]
[Date "2023.02.21"]
[WhiteClock "0:00:07"]
[BlackClock "0:00:01"]

1. d4 {[%clk 0:03:00]}  Nf6 {[%clk 0:02:59]} 2. Bf4 {[%clk 0:03:01]}  g6 {[%clk 0:02:57]} 3. Nc3 {[%clk 0:03:00]}  d5 {[%clk 0:02:58]} 4. e3 {[%clk 0:03:00]}  Bg7 {[%clk 0:02:58]} 5. h4 {[%clk 0:03:00]}  h5 {[%clk 0:02:58]} 6. Nf3 {[%clk 0:03:00]}  Bg4 {[%clk 0:02:58]} 7. Be2 {[%clk 0:03:00]}  c5 {[%clk 0:02:55]} 8. Ne5 {[%clk 0:02:21]}  Bxe2 {[%clk 0:02:52]} 9. Qxe2 {[%clk 0:02:22]}  Nbd7 {[%clk 0:02:21]} 10. f3 {[%clk 0:02:18]}  Qb6 {[%clk 0:02:15]} 11. O-O-O {[%clk 0:02:12]}  e6 {[%clk 0:02:12]} 12. g4 {[%clk 0:02:08]}  Rc8 {[%clk 0:01:59]} 13. g5 {[%clk 0:01:49]}  Ng8 {[%clk 0:01:49]} 14. Qb5 {[%clk 0:01:43]}  Bxe5 {[%clk 0:01:27]} 15. Bxe5 {[%clk 0:01:44]}  Rh7 {[%clk 0:01:27]} 16. Qxb6 {[%clk 0:01:31]}  axb6 {[%clk 0:01:28]} 17. Nb5 {[%clk 0:01:31]}  Ke7 {[%clk 0:01:23]} 18. Rhe1 {[%clk 0:01:19]}  f5 {[%clk 0:01:14]} 19. Bd6+ {[%clk 0:01:13]}  Kd8 {[%clk 0:01:11]} 20. e4 {[%clk 0:01:13]}  dxe4 {[%clk 0:00:43]} 21. fxe4 {[%clk 0:01:14]}  Ne7 {[%clk 0:00:42]} 22. d5 {[%clk 0:00:40]}  exd5 {[%clk 0:00:38]} 23. exd5 {[%clk 0:00:40]}  Nf8 {[%clk 0:00:24]} 24. Re3 {[%clk 0:00:35]}  Kd7 {[%clk 0:00:24]} 25. c4 {[%clk 0:00:29]}  Re8 {[%clk 0:00:24]} 26. Rde1 {[%clk 0:00:29]}  Rf7 {[%clk 0:00:24]} 27. Bf4 {[%clk 0:00:18]}  Ra8 {[%clk 0:00:20]} 28. a3 {[%clk 0:00:17]}  Nc8 {[%clk 0:00:19]} 29. Re8 {[%clk 0:00:16]}  Nh7 {[%clk 0:00:17]} 30. Rh8 {[%clk 0:00:16]}  Nf8 {[%clk 0:00:17]} 31. Rg8 {[%clk 0:00:16]}  Ne7 {[%clk 0:00:15]} 32. Rh8 {[%clk 0:00:13]}  Rh7 {[%clk 0:00:11]} 33. Rxh7 {[%clk 0:00:11]}  Nxh7 {[%clk 0:00:12]} 34. Nc7 {[%clk 0:00:10]}  Rc8 {[%clk 0:00:10]} 35. Re6 {[%clk 0:00:06]}  Nf8 {[%clk 0:00:01]} 36. Rf6 {[%clk 0:00:07]} 1-0


[Site "https://www.chess.com"]

[Event "Titled Tuesday Blitz February 21 Late 2023"]
[White "Sanal, Vahap"]
[Black "Martinez Ramirez, Lennis"]
[WhiteFideId "6300545"]
[BlackFideId "3509079"]
[WhiteElo "2600"]
[BlackElo "2426"]
[Result "1-0"]
[Round "06"]
[TimeControl "180+2"]
[Date "2023.02.21"]
[WhiteClock "0:00:18"]
[BlackClock "0:00:06"]

1. e4 {[%clk 0:03:00]}  e5 {[%clk 0:02:58]} 2. Nf3 {[%clk 0:03:00]}  Nf6 {[%clk 0:02:58]} 3. Nxe5 {[%clk 0:02:57]}  d6 {[%clk 0:02:58]} 4. Nf3 {[%clk 0:02:57]}  Nxe4 {[%clk 0:02:58]} 5. Nc3 {[%clk 0:02:58]}  Nxc3 {[%clk 0:02:57]} 6. dxc3 {[%clk 0:02:59]}  Be7 {[%clk 0:02:57]} 7. Be3 {[%clk 0:02:58]}  Nc6 {[%clk 0:02:58]} 8. Qd2 {[%clk 0:02:59]}  Be6 {[%clk 0:02:58]} 9. O-O-O {[%clk 0:02:59]}  Qd7 {[%clk 0:02:58]} 10. Kb1 {[%clk 0:02:54]}  O-O-O {[%clk 0:02:56]} 11. Nd4 {[%clk 0:02:53]}  Nxd4 {[%clk 0:02:55]} 12. Bxd4 {[%clk 0:02:51]}  Rhg8 {[%clk 0:02:45]} 13. a3 {[%clk 0:02:44]}  Kb8 {[%clk 0:02:44]} 14. Bd3 {[%clk 0:02:41]}  h5 {[%clk 0:02:34]} 15. Rhe1 {[%clk 0:02:39]}  h4 {[%clk 0:02:32]} 16. h3 {[%clk 0:02:33]}  g5 {[%clk 0:02:31]} 17. f3 {[%clk 0:02:32]}  c5 {[%clk 0:02:30]} 18. Bf2 {[%clk 0:02:30]}  Qc6 {[%clk 0:02:29]} 19. c4 {[%clk 0:02:29]}  d5 {[%clk 0:02:27]} 20. Qc3 {[%clk 0:02:19]}  d4 {[%clk 0:02:23]} 21. Qd2 {[%clk 0:02:13]}  Bd6 {[%clk 0:02:23]} 22. b3 {[%clk 0:02:07]}  Bf4 {[%clk 0:02:22]} 23. Qe2 {[%clk 0:02:08]}  Rge8 {[%clk 0:02:21]} 24. Qf1 {[%clk 0:02:08]}  Qd7 {[%clk 0:02:01]} 25. Re2 {[%clk 0:02:02]}  Bf5 {[%clk 0:02:01]} 26. Rde1 {[%clk 0:01:53]}  Bxd3 {[%clk 0:02:01]} 27. cxd3 {[%clk 0:01:53]}  a5 {[%clk 0:01:53]} 28. Ka2 {[%clk 0:01:30]}  f5 {[%clk 0:01:29]} 29. Rxe8 {[%clk 0:01:24]}  Rxe8 {[%clk 0:01:29]} 30. Re2 {[%clk 0:01:24]}  a4 {[%clk 0:01:20]} 31. b4 {[%clk 0:01:21]}  Be3 {[%clk 0:01:14]} 32. bxc5 {[%clk 0:01:13]}  f4 {[%clk 0:01:12]} 33. Qd1 {[%clk 0:01:03]}  Re5 {[%clk 0:01:09]} 34. Be1 {[%clk 0:00:59]}  Rxc5 {[%clk 0:01:08]} 35. Bb4 {[%clk 0:00:59]}  Re5 {[%clk 0:01:07]} 36. Rb2 {[%clk 0:01:00]}  Qc6 {[%clk 0:01:00]} 37. Qc2 {[%clk 0:00:59]}  Kc7 {[%clk 0:00:59]} 38. Kb1 {[%clk 0:00:51]}  Kd7 {[%clk 0:00:53]} 39. Ka1 {[%clk 0:00:48]}  Ke6 {[%clk 0:00:50]} 40. Qb1 {[%clk 0:00:48]}  b5 {[%clk 0:00:50]} 41. Rc2 {[%clk 0:00:39]}  bxc4 {[%clk 0:00:49]} 42. Rxc4 {[%clk 0:00:40]}  Qb5 {[%clk 0:00:46]} 43. Qc2 {[%clk 0:00:40]}  Kf6 {[%clk 0:00:34]} 44. Rc8 {[%clk 0:00:36]}  Qd5 {[%clk 0:00:33]} 45. Qc7 {[%clk 0:00:31]}  Qb3 {[%clk 0:00:18]} 46. Qd6+ {[%clk 0:00:23]}  Re6 {[%clk 0:00:10]} 47. Qf8+ {[%clk 0:00:23]}  Kg6 {[%clk 0:00:09]} 48. Qg8+ {[%clk 0:00:23]}  Kf5 {[%clk 0:00:08]} 49. Rf8+ {[%clk 0:00:22]}  Rf6 {[%clk 0:00:07]} 50. Qh7+ {[%clk 0:00:20]}  Ke5 {[%clk 0:00:07]} 51. Qe7+ {[%clk 0:00:14]}  Qe6 {[%clk 0:00:05]} 52. Rxf6 {[%clk 0:00:12]}  Qxe7 {[%clk 0:00:03]} 53. Bxe7 {[%clk 0:00:12]}  Bd2 {[%clk 0:00:02]} 54. Rg6 {[%clk 0:00:11]}  g4 {[%clk 0:00:03]} 55. Rxg4 {[%clk 0:00:11]}  Bc3+ {[%clk 0:00:04]} 56. Ka2 {[%clk 0:00:12]}  Bd2 {[%clk 0:00:04]} 57. Bxh4 {[%clk 0:00:12]}  Ke6 {[%clk 0:00:04]} 58. Bg5 {[%clk 0:00:13]}  Kd5 {[%clk 0:00:05]} 59. Bxf4 {[%clk 0:00:13]}  Bc3 {[%clk 0:00:06]} 60. h4 {[%clk 0:00:13]}  Kc6 {[%clk 0:00:07]} 61. Bc1 {[%clk 0:00:13]}  Kb5 {[%clk 0:00:07]} 62. Bb2 {[%clk 0:00:14]}  Ba5 {[%clk 0:00:05]} 63. Rg5+ {[%clk 0:00:14]}  Ka6 {[%clk 0:00:05]} 64. h5 {[%clk 0:00:14]}  Bb6 {[%clk 0:00:05]} 65. Rg6 {[%clk 0:00:15]}  Ka5 {[%clk 0:00:05]} 66. h6 {[%clk 0:00:16]}  Bc5 {[%clk 0:00:04]} 67. h7 {[%clk 0:00:16]}  Bxa3 {[%clk 0:00:05]} 68. h8=Q {[%clk 0:00:16]}  Bxb2 {[%clk 0:00:04]} 69. Qd8+ {[%clk 0:00:17]}  Kb4 {[%clk 0:00:04]} 70. Qb6+ {[%clk 0:00:18]}  Kc3 {[%clk 0:00:05]} 71. Qxb2+ {[%clk 0:00:16]}  Kxd3 {[%clk 0:00:06]} 72. Rd6 {[%clk 0:00:17]}  a3 {[%clk 0:00:07]} 73. Rxd4+ {[%clk 0:00:17]}  Ke3 {[%clk 0:00:06]} 74. Qd2# {[%clk 0:00:18]} 1-0


[Site "https://www.chess.com"]

[Event "Titled Tuesday Blitz February 21 Late 2023"]
[White "Ozates, Tuna"]
[Black "Zhigalko, Sergei"]
[WhiteFideId "6354521"]
[BlackFideId "13502956"]
[WhiteElo "2251"]
[BlackElo "2572"]
[Result "0-1"]
[Round "06"]
[TimeControl "180+2"]
[Date "2023.02.21"]
[WhiteClock "0:01:27"]
[BlackClock "0:01:56"]

1. e4 {[%clk 0:03:00]}  c5 {[%clk 0:03:00]} 2. Nf3 {[%clk 0:03:01]}  Nc6 {[%clk 0:03:00]} 3. Bb5 {[%clk 0:03:01]}  Nf6 {[%clk 0:03:00]} 4. Bxc6 {[%clk 0:02:58]}  dxc6 {[%clk 0:03:01]} 5. d3 {[%clk 0:02:58]}  Bg4 {[%clk 0:03:01]} 6. h3 {[%clk 0:02:57]}  Bh5 {[%clk 0:03:01]} 7. O-O {[%clk 0:02:57]}  Qc7 {[%clk 0:03:01]} 8. e5 {[%clk 0:02:54]}  Bxf3 {[%clk 0:02:59]} 9. Qxf3 {[%clk 0:02:55]}  Qxe5 {[%clk 0:03:00]} 10. Nc3 {[%clk 0:02:53]}  e6 {[%clk 0:02:56]} 11. Bf4 {[%clk 0:02:52]}  Qh5 {[%clk 0:02:56]} 12. g4 {[%clk 0:02:51]}  Qg6 {[%clk 0:02:55]} 13. Rfe1 {[%clk 0:02:48]}  Be7 {[%clk 0:02:55]} 14. Kh2 {[%clk 0:02:41]}  O-O {[%clk 0:02:47]} 15. Rg1 {[%clk 0:02:30]}  Rfd8 {[%clk 0:02:28]} 16. Rae1 {[%clk 0:02:13]}  c4 {[%clk 0:02:24]} 17. dxc4 {[%clk 0:02:05]}  Qxc2 {[%clk 0:02:25]} 18. Re2 {[%clk 0:02:04]}  Qd3 {[%clk 0:02:25]} 19. Re3 {[%clk 0:01:55]}  Qxc4 {[%clk 0:02:25]} 20. g5 {[%clk 0:01:56]}  Nd5 {[%clk 0:02:25]} 21. Nxd5 {[%clk 0:01:53]}  Rxd5 {[%clk 0:02:18]} 22. Rg4 {[%clk 0:01:45]}  Qxa2 {[%clk 0:02:14]} 23. Be5 {[%clk 0:01:40]}  Rxe5 {[%clk 0:02:06]} 24. Rxe5 {[%clk 0:01:41]}  Bd6 {[%clk 0:02:06]} 25. Re4 {[%clk 0:01:33]}  Qxb2 {[%clk 0:02:04]} 26. Qe3 {[%clk 0:01:27]}  Bxe5+ {[%clk 0:02:01]} 27. Rxe5 {[%clk 0:01:27]}  Rd8 {[%clk 0:01:57]} 28. Qxa7 {[%clk 0:01:27]}  Qxe5+ {[%clk 0:01:56]} 0-1


[Site "https://www.chess.com"]

[Event "Titled Tuesday Blitz February 21 Late 2023"]
[White "Florescu, Codrut-Constantin"]
[Black "Samsonkin, Artiom"]
[WhiteFideId "1202200"]
[BlackFideId "13503111"]
[WhiteElo "2259"]
[BlackElo "2420"]
[Result "1-0"]
[Round "06"]
[TimeControl "180+2"]
[Date "2023.02.21"]
[WhiteClock "0:00:26"]
[BlackClock "0:00:08"]

1. e4 {[%clk 0:03:00]}  c5 {[%clk 0:02:56]} 2. Nf3 {[%clk 0:03:00]}  d6 {[%clk 0:02:57]} 3. d4 {[%clk 0:03:01]}  cxd4 {[%clk 0:02:57]} 4. Nxd4 {[%clk 0:03:01]}  Nf6 {[%clk 0:02:58]} 5. Nc3 {[%clk 0:03:01]}  g6 {[%clk 0:02:59]} 6. Be3 {[%clk 0:03:01]}  Bg7 {[%clk 0:02:59]} 7. f3 {[%clk 0:03:01]}  Nc6 {[%clk 0:03:00]} 8. Qd2 {[%clk 0:03:01]}  O-O {[%clk 0:02:58]} 9. Bc4 {[%clk 0:03:01]}  Nxd4 {[%clk 0:02:57]} 10. Bxd4 {[%clk 0:03:01]}  Be6 {[%clk 0:02:57]} 11. Bxe6 {[%clk 0:02:56]}  fxe6 {[%clk 0:02:57]} 12. O-O {[%clk 0:02:56]}  Rc8 {[%clk 0:02:48]} 13. Rfe1 {[%clk 0:02:51]}  Rc4 {[%clk 0:02:27]} 14. Be3 {[%clk 0:02:31]}  Nd7 {[%clk 0:02:15]} 15. Rad1 {[%clk 0:02:02]}  Ne5 {[%clk 0:01:54]} 16. Kh1 {[%clk 0:01:42]}  Qa5 {[%clk 0:01:46]} 17. a3 {[%clk 0:01:40]}  Rfc8 {[%clk 0:01:40]} 18. Qf2 {[%clk 0:01:36]}  R4c6 {[%clk 0:01:35]} 19. Qh4 {[%clk 0:01:26]}  Bf6 {[%clk 0:01:29]} 20. Qh3 {[%clk 0:01:26]}  Kf7 {[%clk 0:00:46]} 21. Qxh7+ {[%clk 0:01:22]}  Bg7 {[%clk 0:00:47]} 22. Bh6 {[%clk 0:01:19]}  Rg8 {[%clk 0:00:47]} 23. Bxg7 {[%clk 0:01:20]}  Rxg7 {[%clk 0:00:48]} 24. Qh4 {[%clk 0:01:16]}  Nc4 {[%clk 0:00:45]} 25. Qf4+ {[%clk 0:00:47]}  Ke8 {[%clk 0:00:37]} 26. Rb1 {[%clk 0:00:36]}  Rh7 {[%clk 0:00:30]} 27. h3 {[%clk 0:00:35]}  b6 {[%clk 0:00:22]} 28. Qg4 {[%clk 0:00:35]}  Kf7 {[%clk 0:00:21]} 29. Ne2 {[%clk 0:00:33]}  Ne3 {[%clk 0:00:19]} 30. Qf4+ {[%clk 0:00:32]}  Ke8 {[%clk 0:00:19]} 31. Qxe3 {[%clk 0:00:32]}  Rxc2 {[%clk 0:00:19]} 32. Nd4 {[%clk 0:00:29]}  Rc4 {[%clk 0:00:07]} 33. Nxe6 {[%clk 0:00:29]}  Qe5 {[%clk 0:00:08]} 34. Nf4 {[%clk 0:00:28]}  g5 {[%clk 0:00:08]} 35. Nd3 {[%clk 0:00:27]}  Qg3 {[%clk 0:00:08]} 36. Qf2 {[%clk 0:00:26]} 1-0


[Site "https://www.chess.com"]

[Event "Titled Tuesday Blitz February 21 Late 2023"]
[White "Oro, Faustino"]
[Black "Fedoseev, Vladimir"]
[WhiteFideId "20000197"]
[BlackFideId "24130737"]
[WhiteElo "2269"]
[BlackElo "2680"]
[Result "0-1"]
[Round "06"]
[TimeControl "180+2"]
[Date "2023.02.21"]
[WhiteClock "0:00:03"]
[BlackClock "0:00:40"]

1. e4 {[%clk 0:03:00]}  a6 {[%clk 0:03:00]} 2. d4 {[%clk 0:02:59]}  b5 {[%clk 0:03:00]} 3. Nf3 {[%clk 0:02:58]}  Bb7 {[%clk 0:03:00]} 4. Bd3 {[%clk 0:02:59]}  e6 {[%clk 0:03:00]} 5. O-O {[%clk 0:02:58]}  c5 {[%clk 0:03:01]} 6. c3 {[%clk 0:02:58]}  Nf6 {[%clk 0:03:00]} 7. Qe2 {[%clk 0:02:57]}  Be7 {[%clk 0:03:00]} 8. Nbd2 {[%clk 0:02:58]}  cxd4 {[%clk 0:02:59]} 9. cxd4 {[%clk 0:02:58]}  d6 {[%clk 0:02:59]} 10. Rd1 {[%clk 0:02:56]}  Nc6 {[%clk 0:02:59]} 11. Nf1 {[%clk 0:02:56]}  Nd7 {[%clk 0:02:54]} 12. Ng3 {[%clk 0:02:52]}  O-O {[%clk 0:02:52]} 13. Be3 {[%clk 0:02:51]}  g6 {[%clk 0:02:47]} 14. Rac1 {[%clk 0:02:46]}  Bf6 {[%clk 0:02:45]} 15. Bb1 {[%clk 0:02:43]}  Re8 {[%clk 0:02:40]} 16. Qd2 {[%clk 0:02:34]}  Bg7 {[%clk 0:02:40]} 17. h4 {[%clk 0:02:28]}  Nf6 {[%clk 0:02:34]} 18. h5 {[%clk 0:02:23]}  Ng4 {[%clk 0:02:28]} 19. hxg6 {[%clk 0:02:22]}  fxg6 {[%clk 0:02:21]} 20. Bg5 {[%clk 0:02:17]}  Qd7 {[%clk 0:02:22]} 21. d5 {[%clk 0:02:02]}  exd5 {[%clk 0:02:22]} 22. exd5 {[%clk 0:02:03]}  Nce5 {[%clk 0:02:21]} 23. Nd4 {[%clk 0:02:01]}  Nc4 {[%clk 0:02:13]} 24. Qb4 {[%clk 0:01:46]}  Qf7 {[%clk 0:01:59]} 25. Nh1 {[%clk 0:01:16]}  Qxd5 {[%clk 0:01:30]} 26. Nf3 {[%clk 0:01:01]}  Qf7 {[%clk 0:01:30]} 27. b3 {[%clk 0:00:36]}  Nge5 {[%clk 0:01:06]} 28. Nxe5 {[%clk 0:00:33]}  Nxe5 {[%clk 0:01:06]} 29. Qxd6 {[%clk 0:00:31]}  Nf3+ {[%clk 0:00:59]} 30. Kf1 {[%clk 0:00:23]}  Be5 {[%clk 0:00:50]} 31. Qd7 {[%clk 0:00:05]}  Nxg5 {[%clk 0:00:48]} 32. Qxf7+ {[%clk 0:00:04]}  Nxf7 {[%clk 0:00:49]} 33. Rd7 {[%clk 0:00:04]}  Rac8 {[%clk 0:00:47]} 34. Re1 {[%clk 0:00:04]}  Bc3 {[%clk 0:00:44]} 35. Rxe8+ {[%clk 0:00:04]}  Rxe8 {[%clk 0:00:45]} 36. Rd1 {[%clk 0:00:03]}  Ng5 {[%clk 0:00:44]} 37. Ng3 {[%clk 0:00:03]}  Ne6 {[%clk 0:00:44]} 38. Ne2 {[%clk 0:00:04]}  Bf6 {[%clk 0:00:43]} 39. Rc1 {[%clk 0:00:03]}  Rc8 {[%clk 0:00:43]} 40. Rd1 {[%clk 0:00:03]}  Rd8 {[%clk 0:00:43]} 41. Rc1 {[%clk 0:00:03]}  Kf7 {[%clk 0:00:43]} 42. a3 {[%clk 0:00:01]}  h5 {[%clk 0:00:43]} 43. a4 {[%clk 0:00:02]}  bxa4 {[%clk 0:00:42]} 44. bxa4 {[%clk 0:00:03]}  a5 {[%clk 0:00:43]} 45. Ba2 {[%clk 0:00:03]}  Bd5 {[%clk 0:00:42]} 46. Bb1 {[%clk 0:00:03]}  Rb8 {[%clk 0:00:41]} 47. Rd1 {[%clk 0:00:02]}  Bc4 {[%clk 0:00:41]} 48. Ke1 {[%clk 0:00:03]}  Rb4 {[%clk 0:00:40]} 0-1


[Site "https://www.chess.com"]

[Event "Titled Tuesday Blitz February 21 Late 2023"]
[White "Solon, Nathan"]
[Black "Kramnik, Vladimir"]
[WhiteFideId "2017229"]
[BlackFideId "4101588"]
[WhiteElo "2306"]
[BlackElo "2753"]
[Result "0-1"]
[Round "06"]
[TimeControl "180+2"]
[Date "2023.02.21"]
[WhiteClock "0:00:09"]
[BlackClock "0:00:49"]

1. Nf3 {[%clk 0:03:00]}  Nf6 {[%clk 0:02:58]} 2. g3 {[%clk 0:03:00]}  b5 {[%clk 0:02:58]} 3. Bg2 {[%clk 0:02:55]}  Bb7 {[%clk 0:02:57]} 4. Na3 {[%clk 0:02:54]}  b4 {[%clk 0:02:55]} 5. Nc4 {[%clk 0:02:54]}  a5 {[%clk 0:02:53]} 6. O-O {[%clk 0:02:51]}  e6 {[%clk 0:02:49]} 7. b3 {[%clk 0:02:39]}  Be7 {[%clk 0:02:45]} 8. Bb2 {[%clk 0:02:40]}  O-O {[%clk 0:02:45]} 9. a4 {[%clk 0:02:35]}  d5 {[%clk 0:02:43]} 10. Nce5 {[%clk 0:02:35]}  c5 {[%clk 0:02:43]} 11. e3 {[%clk 0:02:26]}  Nbd7 {[%clk 0:02:38]} 12. d3 {[%clk 0:02:20]}  Nb6 {[%clk 0:02:25]} 13. Qe2 {[%clk 0:02:18]}  Ne8 {[%clk 0:02:24]} 14. Nd2 {[%clk 0:02:07]}  f6 {[%clk 0:02:22]} 15. Nef3 {[%clk 0:02:07]}  Nd6 {[%clk 0:02:11]} 16. Rfe1 {[%clk 0:02:05]}  e5 {[%clk 0:02:04]} 17. e4 {[%clk 0:01:59]}  c4 {[%clk 0:02:02]} 18. dxc4 {[%clk 0:01:47]}  dxc4 {[%clk 0:02:02]} 19. c3 {[%clk 0:01:47]}  cxb3 {[%clk 0:01:40]} 20. Nxb3 {[%clk 0:01:47]}  Ndc4 {[%clk 0:01:34]} 21. cxb4 {[%clk 0:01:36]}  Bxb4 {[%clk 0:01:33]} 22. Red1 {[%clk 0:01:32]}  Qe8 {[%clk 0:01:32]} 23. Rac1 {[%clk 0:01:11]}  Ba6 {[%clk 0:01:27]} 24. Qc2 {[%clk 0:00:51]}  Nxa4 {[%clk 0:01:25]} 25. Ba1 {[%clk 0:00:48]}  Kh8 {[%clk 0:01:16]} 26. Bf1 {[%clk 0:00:43]}  Nab6 {[%clk 0:01:13]} 27. Nh4 {[%clk 0:00:37]}  a4 {[%clk 0:01:08]} 28. Bxc4 {[%clk 0:00:11]}  Nxc4 {[%clk 0:01:05]} 29. Nd2 {[%clk 0:00:09]}  Nxd2 {[%clk 0:01:00]} 30. Rxd2 {[%clk 0:00:10]}  Rc8 {[%clk 0:00:58]} 31. Qd1 {[%clk 0:00:08]}  Bxd2 {[%clk 0:00:54]} 32. Qxd2 {[%clk 0:00:08]}  Rxc1+ {[%clk 0:00:51]} 33. Qxc1 {[%clk 0:00:09]}  Qb5 {[%clk 0:00:49]} 0-1


[Site "https://www.chess.com"]

[Event "Titled Tuesday Blitz February 21 Late 2023"]
[White "Indjic, Aleksandar"]
[Black "Averjanov, Alexey"]
[WhiteFideId "911925"]
[BlackFideId "14109867"]
[WhiteElo "2618"]
[BlackElo "2399"]
[Result "1-0"]
[Round "06"]
[TimeControl "180+2"]
[Date "2023.02.21"]
[WhiteClock "0:00:20"]
[BlackClock "0:00:02"]

1. e4 {[%clk 0:03:00]}  c6 {[%clk 0:03:00]} 2. d4 {[%clk 0:02:56]}  d5 {[%clk 0:03:00]} 3. e5 {[%clk 0:02:56]}  Bf5 {[%clk 0:02:59]} 4. h4 {[%clk 0:02:56]}  h5 {[%clk 0:02:59]} 5. Bd3 {[%clk 0:02:57]}  Bxd3 {[%clk 0:02:58]} 6. Qxd3 {[%clk 0:02:58]}  e6 {[%clk 0:02:59]} 7. Bg5 {[%clk 0:02:56]}  Qa5+ {[%clk 0:02:59]} 8. Nd2 {[%clk 0:02:51]}  Qa6 {[%clk 0:02:59]} 9. c4 {[%clk 0:02:50]}  Bb4 {[%clk 0:02:59]} 10. b3 {[%clk 0:02:48]}  Ne7 {[%clk 0:02:55]} 11. Nf3 {[%clk 0:02:46]}  Nf5 {[%clk 0:02:53]} 12. O-O {[%clk 0:02:45]}  Nd7 {[%clk 0:02:53]} 13. Rfc1 {[%clk 0:02:18]}  Ba3 {[%clk 0:02:41]} 14. Rd1 {[%clk 0:02:16]}  c5 {[%clk 0:02:36]} 15. Qc3 {[%clk 0:02:14]}  Bb4 {[%clk 0:02:16]} 16. Qb2 {[%clk 0:01:56]}  Ba3 {[%clk 0:02:15]} 17. Qc2 {[%clk 0:01:54]}  cxd4 {[%clk 0:01:55]} 18. cxd5 {[%clk 0:01:43]}  O-O {[%clk 0:01:54]} 19. Nc4 {[%clk 0:01:40]}  Rac8 {[%clk 0:01:46]} 20. Qe4 {[%clk 0:01:15]}  Nc5 {[%clk 0:01:25]} 21. Qf4 {[%clk 0:01:14]}  b5 {[%clk 0:00:34]} 22. Nxa3 {[%clk 0:01:02]}  Qxa3 {[%clk 0:00:35]} 23. Nxd4 {[%clk 0:00:39]}  Nxd4 {[%clk 0:00:31]} 24. Qxd4 {[%clk 0:00:39]}  exd5 {[%clk 0:00:28]} 25. Be7 {[%clk 0:00:40]}  Rfe8 {[%clk 0:00:25]} 26. Bd6 {[%clk 0:00:40]}  Rc6 {[%clk 0:00:16]} 27. Qxd5 {[%clk 0:00:38]}  Rec8 {[%clk 0:00:15]} 28. Rac1 {[%clk 0:00:36]}  Qb4 {[%clk 0:00:09]} 29. Rc2 {[%clk 0:00:33]}  Qg4 {[%clk 0:00:07]} 30. Rdc1 {[%clk 0:00:29]}  Ne6 {[%clk 0:00:01]} 31. Rxc6 {[%clk 0:00:22]}  Rxc6 {[%clk 0:00:02]} 32. Qxc6 {[%clk 0:00:20]}  Nf4 {[%clk 0:00:02]} 33. Qc8+ {[%clk 0:00:20]}  Qxc8 {[%clk 0:00:02]} 34. Rxc8+ {[%clk 0:00:20]}  Kh7 {[%clk 0:00:02]} 35. Kf1 {[%clk 0:00:20]}  Kg6 {[%clk 0:00:02]} 36. Ra8 {[%clk 0:00:20]} 1-0


[Site "https://www.chess.com"]